bitfinex/quotes_ETHUSD_20230119
["timestamp","ask_amount","ask_price","bid_price","bid_amount"]
[1674114545758,20.12521079,1529.6,1529.5,0.05907438]
[1674114546473,19.63481079,1529.6,1529.5,0.05907438]
[1674114546917,20.66077831,1529.6,1529.5,0.05907438]
[1674114547429,20.66077265,1529.6,1529.5,0.05907438]
[1674114549632,19.63480513,1529.6,1529.5,0.05907438]
[1674114550000,18.9502138,1529.6,1529.5,0.05907438]
[1674114550740,18.94729395,1529.6,1529.5,0.05907438]
[1674114550957,16.43012774,1529.6,1529.5,0.05907438]
[1674114553312,9.89247774,1529.6,1529.5,0.05907438]
[1674114556906,0.066,1529.6,1529.5,0.90007438]
[1674114557090,7.28815133,1529.7,1529.5,1.11798182]
[1674114557305,4.04233892,1529.7,1529.5,1.11798182]
[1674114557559,3.97633892,1529.7,1529.5,0.27698182]
[1674114560925,37.60725885,1529.8,1529.5,0.27698182]
[1674114561152,40.89900644,1529.8,1529.5,0.27698182]
[1674114564294,4.05059133,1529.8,1529.7,1.28]
[1674114564486,3.3,1529.8,1529.7,1.5365]
[1674114566154,3.302,1529.8,1529.7,1.5365]
[1674114566382,3.3,1529.8,1529.7,1.5365]
[1674114570096,3.3,1529.8,1529.7,1.28]
[1674114570456,3.302,1529.8,1529.7,1.28]
[1674114570717,3.3,1529.8,1529.7,1.28]
[1674114572196,3.3,1529.8,1529.6,1.285]
[1674114574184,3.3,1529.8,1529.5,14.87996182]
[1674114574407,3.3,1529.8,1529.5,16.15696182]
[1674114577285,3.3,1529.8,1529.5,14.87996182]
[1674114578966,3.98459133,1529.8,1529.5,14.87996182]
[1674114580024,3.3,1529.8,1529.5,14.87996182]
[1674114580460,3.3,1529.8,1529.6,1.48799618]
[1674114588966,3.98659133,1529.8,1529.6,1.48799618]
[1674114589115,3.98459133,1529.8,1529.5,16.15696182]
[1674114590163,3.3,1529.8,1529.5,16.15696182]
[1674114590529,3.98459133,1529.8,1529.5,16.15696182]
[1674114595520,3.98459133,1529.8,1529.5,14.66205438]
[1674114597197,5.01055885,1529.8,1529.5,14.66205438]
[1674114597424,5.07655885,1529.8,1529.5,14.66205438]
[1674114597568,5.07655885,1529.8,1529.5,14.60298]
[1674114600244,4.05059133,1529.8,1529.5,14.60298]
[1674114600476,3.98459133,1529.8,1529.5,18.10235638]
[1674114600611,3.98459133,1529.8,1529.5,19.80565234]
[1674114601594,3.98459133,1529.8,1529.6,1.13550332]
[1674114603362,3.3,1529.8,1529.6,1.13550332]
[1674114605921,2.61875158,1529.8,1529.5,21.51188014]
[1674114606672,2.61875158,1529.8,1529.5,20.49176996]
[1674114606881,2.61875158,1529.8,1529.5,21.51188014]
[1674114607098,2.61875158,1529.8,1529.6,2.83730563]
[1674114607252,1.40773808,1529.8,1529.7,1.97111762]
[1674114608301,1.40773808,1529.8,1529.7,8.50833762]
[1674114608515,1.40773808,1529.8,1529.7,8.57433762]
[1674114608723,1.40773808,1529.8,1529.7,10.67564018]
[1674114616601,1.40773808,1529.8,1529.7,11.3617578]
[1674114616858,1.40773808,1529.8,1529.7,17.21286018]
[1674114618343,1.40773808,1529.8,1529.7,10.67564018]
[1674114620149,1.40773808,1529.8,1529.7,9.39064018]
[1674114628621,1.40773808,1529.8,1529.7,9.38864018]
[1674114628832,1.40773808,1529.8,1529.7,9.39064018]
[1674114634699,1.40773808,1529.8,1529.7,10.52599149]
[1674114634958,0.19675916,1529.8,1529.7,17.06321149]
[1674114635958,0.19675916,1529.8,1529.7,19.03432911]
[1674114638957,0.19675916,1529.8,1529.7,20.05443929]
[1674114639774,0.19675916,1529.8,1529.7,27.03230449]
[1674114639989,0.19675916,1529.8,1529.7,28.73560045]
[1674114640175,0.19675916,1529.8,1529.7,29.22600045]
[1674114640381,0.19675916,1529.8,1529.7,28.73560045]
[1674114642102,0.19675916,1529.8,1529.7,27.36336522]
[1674114642567,0.19675916,1529.8,1529.7,28.73560045]
[1674114644356,0.19675916,1529.8,1529.7,27.36336522]
[1674114644852,0.19675916,1529.8,1529.7,28.73560045]
[1674114645611,0.19675916,1529.8,1529.7,27.36336522]
[1674114646139,0.19675916,1529.8,1529.7,28.73560045]
[1674114648880,0.19675916,1529.8,1529.7,27.36336522]
[1674114649283,0.19675916,1529.8,1529.7,28.73560045]
[1674114649892,0.19675916,1529.8,1529.7,27.71549027]
[1674114650997,0.19675916,1529.8,1529.7,28.74314226]
[1674114651137,0.19675916,1529.8,1529.7,27.37090703]
[1674114651354,0.19675916,1529.8,1529.7,28.74314226]
[1674114652616,0.19675916,1529.8,1529.7,27.37090703]
[1674114652863,0.19675916,1529.8,1529.7,28.74314226]
[1674114653189,0.19675916,1529.8,1529.7,27.37090703]
[1674114653344,0.19675916,1529.8,1529.7,28.74314226]
[1674114654038,0.19675916,1529.8,1529.7,27.37090703]
[1674114655043,1e-08,1529.8,1529.7,27.37090703]
[1674114655479,1e-08,1529.8,1529.7,35.33240703]
[1674114659182,1e-08,1529.8,1529.7,36.01739527]
[1674114659496,1e-08,1529.8,1529.7,30.41299569]
[1674114661329,1e-08,1529.8,1529.7,30.36299569]
[1674114661974,1e-08,1529.8,1529.7,29.67800745]
[1674114662539,1e-08,1529.8,1529.7,30.36299569]
[1674114663661,1e-08,1529.8,1529.7,22.40149569]
[1674114664396,1e-08,1529.8,1529.7,21.71650745]
[1674114664762,1e-08,1529.8,1529.7,22.35149569]
[1674114665488,1e-08,1529.8,1529.7,21.66650745]
[1674114666477,1e-08,1529.8,1529.7,22.35149569]
[1674114669043,1e-08,1529.8,1529.7,12.34186727]
[1674114669228,1e-08,1529.8,1529.7,10.63857131]
[1674114670737,1e-08,1529.8,1529.7,11.27355955]
[1674114671221,1e-08,1529.8,1529.7,10.58857131]
[1674114672941,1e-08,1529.8,1529.7,11.27355955]
[1674114673156,1e-08,1529.8,1529.7,10.58857131]
[1674114675187,1.272,1530.0,1529.8,0.00199999]
[1674114675336,2.12781513,1530.0,1529.8,0.00199999]
[1674114682132,5.42781513,1530.0,1529.8,0.00199999]
[1674114682308,5.49381513,1530.0,1529.8,0.00199999]
[1674114686288,6.49381513,1530.0,1529.8,0.00199999]
[1674114686454,5.49381513,1530.0,1529.8,0.00199999]
[1674114687152,1.83138151,1529.9,1529.8,0.00199999]
[1674114687346,20.4808691,1529.9,1529.8,0.00199999]
[1674114687556,20.5468691,1529.9,1529.8,0.00199999]
[1674114689585,19.5468691,1529.9,1529.8,0.00199999]
[1674114692811,11.7254991,1529.9,1529.8,0.00199999]
[1674114696758,11.7254991,1529.9,1529.6,1.13542209]
[1674114696903,1.285,1529.8,1529.6,1.13542209]
[1674114700933,1.285,1529.7,1529.6,1.13542209]
[1674114701150,0.07388014,1529.7,1529.6,1.13542209]
[1674114704536,0.07388014,1529.7,1529.5,10.28902824]
[1674114704726,0.07388014,1529.7,1529.5,9.60404]
[1674114705049,0.07388014,1529.7,1529.5,10.28902824]
[1674114705488,0.07388014,1529.7,1529.5,9.60404]
[1674114708205,0.07388014,1529.7,1529.5,10.28902824]
[1674114708953,0.07388014,1529.7,1529.6,1.1354472]
[1674114709531,0.07388014,1529.7,1529.5,9.60404]
[1674114709799,0.07388014,1529.7,1529.5,10.28902824]
[1674114710003,0.07388014,1529.7,1529.5,9.60404]
[1674114710170,0.07388014,1529.7,1529.5,6.60404]
[1674114710816,0.07388014,1529.7,1529.6,1.13544701]
[1674114711028,0.07388014,1529.7,1529.5,6.60404]
[1674114712474,0.07388014,1529.7,1529.5,7.28902824]
[1674114712894,0.07388014,1529.7,1529.5,6.60404]
[1674114717699,1.272,1529.6,1529.5,0.066]
[1674114717868,2.555,1529.6,1529.5,1.13552906]
[1674114718431,2.555,1529.6,1529.4,1.8205173]
[1674114718755,1.28,1529.5,1529.4,1.8205173]
[1674114719113,1.28,1529.5,1529.4,1.13552906]
[1674114719685,0.30188801,1529.7,1529.4,1.8205173]
[1674114719686,1.58688801,1529.7,1529.4,1.8205173]
[1674114719910,1.52088801,1529.7,1529.4,1.8205173]
[1674114721366,1.285,1529.7,1529.4,8.3589873]
[1674114721575,1.285,1529.7,1529.5,1.13552906]
[1674114727163,1.7754,1529.7,1529.5,1.13552906]
[1674114730054,1.285,1529.7,1529.5,1.13552906]
[1674114736073,4.157705,1529.7,1529.5,1.13552906]
[1674114736496,4.157705,1529.7,1529.3,22.39176521]
[1674114736497,10.694995,1529.7,1529.3,16.60384345]
[1674114736710,10.760995,1529.7,1529.3,10.06493345]
[1674114736927,1.0694995,1529.6,1529.3,9.03728146]
[1674114742798,4.36124709,1529.6,1529.3,9.03728146]
[1674114743000,10.89890709,1529.6,1529.3,9.03728146]
[1674114743207,10.96490709,1529.6,1529.3,8.35229322]
[1674114743415,1.08989071,1529.5,1529.3,0.15689322]
[1674114743634,2.37489071,1529.5,1529.3,0.09089322]
[1674114743890,0.23748907,1529.4,1529.3,0.09089322]
[1674114746357,0.9220804,1529.4,1529.3,0.09089322]
[1674114746566,0.23748907,1529.4,1529.3,0.09089322]
[1674114750528,2.79848907,1529.4,1529.3,0.09089322]
[1674114754922,0.23748907,1529.4,1529.3,0.09089322]
[1674114757711,0.23748907,1529.4,1529.3,0.08809745]
[1674114761176,6.60408,1529.5,1529.3,0.08809745]
[1674114761382,9.89582759,1529.5,1529.3,0.08809745]
[1674114765563,3.35774759,1529.5,1529.3,0.08809745]
[1674114765774,3.29174759,1529.5,1529.3,0.08809745]
[1674114765917,7.09552543,1529.5,1529.3,0.08809745]
[1674114766130,13.69964543,1529.5,1529.3,0.08809745]
[1674114769435,0.4905,1529.4,1529.3,0.08809745]
[1674114769648,14.19004543,1529.5,1529.3,0.08809745]
[1674114769825,1.41900454,1529.4,1529.3,0.08809745]
[1674114772752,2.10359587,1529.4,1529.3,0.08809745]
[1674114772960,1.41900454,1529.4,1529.3,0.08809745]
[1674114773196,2.10359587,1529.4,1529.3,0.08809745]
[1674114774060,1.41900454,1529.4,1529.3,0.08809745]
[1674114776364,22.43890428,1529.5,1529.3,0.08809745]
[1674114778258,21.41293676,1529.5,1529.3,0.08809745]
[1674114778625,22.43890428,1529.5,1529.3,0.08809745]
[1674114779701,0.68459133,1529.4,1529.3,0.08809745]
[1674114779899,22.43890428,1529.5,1529.3,0.08809745]
[1674114780115,2.24389043,1529.4,1529.3,0.08809745]
[1674114782767,2.92848176,1529.4,1529.3,0.08809745]
[1674114785033,2.26695885,1529.5,1529.3,0.08809745]
[1674114785252,0.68459133,1529.5,1529.3,0.08809745]
[1674114785575,18.82549133,1529.6,1529.3,7.89990745]
[1674114785786,18.82549133,1529.6,1529.3,7.96590745]
[1674114788086,18.1409,1529.6,1529.3,7.96590745]
[1674114788961,18.82549133,1529.6,1529.3,10.44491479]
[1674114789302,18.1409,1529.6,1529.3,10.44491479]
[1674114791694,8.106,1529.6,1529.3,10.44491479]
[1674114799722,8.106,1529.6,1529.3,7.96590745]
[1674114807134,8.106,1529.6,1529.3,6.69290745]
[1674114810975,8.106,1529.6,1529.3,9.99290745]
[1674114817272,8.106,1529.6,1529.3,16.53183745]
[1674114817489,8.10372784,1529.6,1529.4,1.13552974]
[1674114818020,0.066,1529.6,1529.4,1.13552974]
[1674114818175,0.4904,1529.7,1529.4,1.13552974]
[1674114818714,0.4904,1529.7,1529.4,2.84816997]
[1674114818937,0.4904,1529.7,1529.5,1.13552974]
[1674114819323,0.4904,1529.7,1529.4,0.68498824]
[1674114819537,0.4904,1529.7,1529.4,1.82045932]
[1674114820203,0.4904,1529.7,1529.4,3.89567772]
[1674114820394,0.4904,1529.7,1529.5,1.13547108]
[1674114821129,0.4904,1529.7,1529.4,0.68498824]
[1674114821323,0.4904,1529.7,1529.4,8.35896077]
[1674114821537,0.4904,1529.7,1529.5,1.13547253]
[1674114822685,26.55214,1529.8,1529.5,1.13547253]
[1674114822896,36.36619388,1529.8,1529.5,1.13547253]
[1674114827269,35.08119388,1529.8,1529.5,1.13547253]
[1674114828186,35.08119388,1529.8,1529.4,8.99299802]
[1674114828362,28.55888759,1529.8,1529.4,7.28948824]
[1674114828778,28.55888759,1529.8,1529.5,1.13547555]
[1674114828779,18.7303,1529.8,1529.5,1.13547555]
[1674114829358,18.7303,1529.8,1529.5,7.67337555]
[1674114829520,18.7303,1529.8,1529.5,8.85680258]
[1674114829733,8.8847,1529.8,1529.5,15.39488258]
[1674114829978,8.8847,1529.8,1529.6,1.13542084]
[1674114829979,8.3944,1529.8,1529.6,1.13542084]
[1674114830193,8.3944,1529.8,1529.7,1.62254208]
[1674114830401,0.066,1529.8,1529.7,1.509]
[1674114830621,0.4903,1529.9,1529.7,1.509]
[1674114831130,0.4903,1529.9,1529.7,0.764]
[1674114832284,0.4903,1529.9,1529.6,6.60348]
[1674114832618,0.4903,1529.9,1529.6,9.72446724]
[1674114835822,18.06598133,1530.0,1529.6,9.72446724]
[1674114836049,21.35772892,1530.0,1529.6,9.72446724]
[1674114837649,22.38369644,1530.0,1529.6,9.72446724]
[1674114837864,0.68459133,1529.9,1529.6,9.72446724]
[1674114838124,1.0,1529.9,1529.6,9.72446724]
[1674114838550,1.68459133,1529.9,1529.6,9.72446724]
[1674114838762,0.68459133,1529.9,1529.6,9.72446724]
[1674114840446,1.68459133,1529.9,1529.6,9.72446724]
[1674114840844,1.68459133,1529.9,1529.6,6.60348]
[1674114841039,0.68459133,1529.9,1529.6,6.60348]
[1674114842385,22.38369644,1530.0,1529.6,6.60348]
[1674114847489,0.68459133,1529.9,1529.6,6.60348]
[1674114851472,15.84770644,1530.0,1529.6,13.14113]
[1674114851680,14.82173892,1530.0,1529.6,15.93493182]
[1674114852708,15.84770644,1530.0,1529.6,15.93493182]
[1674114852968,0.68459133,1529.9,1529.6,15.93493182]
[1674114853160,15.84770644,1530.0,1529.6,15.93493182]
[1674114854089,0.68459133,1529.9,1529.6,15.93493182]
[1674114854298,0.68459133,1529.9,1529.6,9.39728182]
[1674114863046,1.71055885,1529.9,1529.6,9.39728182]
[1674114865111,0.68459133,1529.9,1529.6,9.39728182]
[1674114866480,0.68459133,1529.9,1529.7,0.93972818]
[1674114866684,0.68459133,1529.9,1529.6,9.39728182]
[1674114867776,0.68659133,1529.9,1529.6,9.39528182]
[1674114867985,0.68459133,1529.9,1529.6,9.39728182]
[1674114874541,1.71055885,1529.9,1529.6,9.39728182]
[1674114874734,0.68459133,1529.8,1529.6,9.39728182]
[1674114875585,2.71055885,1529.9,1529.6,9.39728182]
[1674114875902,0.68459133,1529.8,1529.6,6.60348]
[1674114877885,1.71055885,1529.9,1529.6,6.60348]
[1674114878749,0.68459133,1529.8,1529.6,6.60348]
[1674114878976,0.68459133,1529.8,1529.6,9.52529882]
[1674114880056,0.68459133,1529.8,1529.6,0.066]
[1674114880271,0.68459133,1529.8,1529.5,7.64]
[1674114881371,0.68459133,1529.8,1529.6,1.13548835]
[1674114883675,8.31299885,1529.9,1529.6,1.13548835]
[1674114883993,11.35282003,1529.9,1529.6,1.13548835]
[1674114885598,1.0,1529.8,1529.6,1.13548835]
[1674114885725,0.68459133,1529.8,1529.6,1.13548835]
[1674114886146,8.31299885,1529.9,1529.6,1.13548835]
[1674114886419,11.35282003,1529.9,1529.6,1.13548835]
[1674114888304,3.97633892,1529.8,1529.6,1.13548835]
[1674114888519,3.97633892,1529.8,1529.5,0.066]
[1674114888664,3.97633892,1529.8,1529.5,1.82048063]
[1674114888876,3.97633892,1529.8,1529.5,3.06454755]
[1674114889153,3.97633892,1529.8,1529.5,1.92905516]
[1674114890472,3.97633892,1529.8,1529.5,0.68498824]
[1674114890681,3.97633892,1529.8,1529.5,1.82048259]
[1674114891988,3.97633892,1529.8,1529.4,11.3051668]
[1674114892140,3.97633892,1529.8,1529.5,1.13550326]
[1674114892511,13.53175968,1529.8,1529.5,1.13550326]
[1674114892685,21.1605772,1529.8,1529.5,1.13550326]
[1674114893087,21.1605772,1529.8,1529.4,0.68498824]
[1674114893331,21.1605772,1529.8,1529.4,1.82055181]
[1674114893332,0.68459133,1529.7,1529.4,1.82055181]
[1674114893661,0.68459133,1529.7,1529.4,3.52380838]
[1674114894241,21.1605772,1529.8,1529.4,1.70325657]
[1674114894480,21.1605772,1529.8,1529.4,2.83882231]
[1674114897503,2.11605772,1529.7,1529.4,2.83882231]
[1674114897746,21.1605772,1529.8,1529.4,2.83882231]
[1674114898890,14.6237272,1529.8,1529.4,2.83882231]
[1674114899123,14.08805968,1529.8,1529.4,2.83882231]
[1674114901133,14.08805968,1529.8,1529.4,3.52381055]
[1674114905736,13.40346835,1529.8,1529.4,3.52381055]
[1674114905981,3.84804759,1529.8,1529.4,21.98514106]
[1674114906150,3.84804759,1529.8,1529.5,1.13556574]
[1674114906151,3.78204759,1529.8,1529.5,1.13556574]
[1674114908678,4.46663892,1529.8,1529.5,1.13556574]
[1674114909514,11.00348892,1529.8,1529.5,1.13556574]
[1674114909725,14.86916968,1529.8,1529.5,1.13556574]
[1674114914955,14.86916968,1529.8,1529.4,2.38824481]
[1674114915146,14.86916968,1529.8,1529.4,3.5237664]
[1674114918008,9.82916759,1529.7,1529.4,3.5237664]
[1674114918321,9.89516759,1529.7,1529.4,0.68498824]
[1674114918533,9.89516759,1529.7,1529.4,1.8205535]
[1674114918686,12.92060831,1529.7,1529.4,1.8205535]
[1674114919367,12.92060831,1529.7,1529.4,0.68498824]
[1674114919544,12.92060831,1529.7,1529.4,1.82055259]
[1674114920255,12.92060831,1529.7,1529.3,15.98473768]
[1674114920474,12.92060831,1529.7,1529.4,1.13556419]
[1674114921628,12.92060831,1529.7,1529.4,1.82055243]
[1674114921764,12.92060831,1529.7,1529.4,0.68498824]
[1674114921974,12.92060831,1529.7,1529.4,1.13556182]
[1674114922206,12.92060831,1529.7,1529.4,1.82055006]
[1674114922422,12.92060831,1529.7,1529.4,0.68498824]
[1674114922619,12.92060831,1529.7,1529.4,1.82055127]
[1674114923029,12.92060831,1529.7,1529.4,0.68498824]
[1674114923234,12.92060831,1529.7,1529.4,1.82055123]
[1674114923512,12.92060831,1529.7,1529.3,15.98273768]
[1674114923820,9.89516759,1529.7,1529.4,1.8205503]
[1674114923974,9.89516759,1529.7,1529.4,0.68498824]
[1674114924189,9.89516759,1529.7,1529.4,1.82054957]
[1674114926341,12.92063131,1529.7,1529.4,1.82054957]
[1674114926930,13.60522264,1529.7,1529.4,1.13556133]
[1674114927140,13.60522264,1529.7,1529.3,15.98473768]
[1674114927350,10.57975892,1529.7,1529.4,1.13557356]
[1674114930091,10.57975892,1529.7,1529.4,1.8205618]
[1674114930304,3.35774759,1529.7,1529.5,1.13557356]
[1674114930682,3.29174759,1529.7,1529.4,0.68498824]
[1674114930836,18.98324133,1529.8,1529.4,11.26523783]
[1674114931047,15.73813892,1529.8,1529.5,1.13553982]
[1674114931681,14.45313892,1529.8,1529.5,1.13553982]
[1674114931871,13.96283892,1529.8,1529.5,1.13553982]
[1674114935246,13.96283892,1529.8,1529.5,1.82052806]
[1674114936014,10.67109133,1529.8,1529.5,1.82052806]
[1674114937226,9.9865,1529.8,1529.5,1.82052806]
[1674114937438,9.9865,1529.8,1529.5,4.5344157]
[1674114937643,9.9865,1529.8,1529.6,1.13553982]
[1674114938345,0.066,1529.8,1529.6,7.67318982]
[1674114938558,9.26499133,1529.9,1529.6,13.82628824]
[1674114938712,8.5804,1529.9,1529.7,1.13539438]
[1674114938919,0.066,1529.9,1529.7,1.13539438]
[1674114939188,2.20085885,1530.0,1529.7,1.13539438]
[1674114939398,2.20085885,1530.0,1529.6,16.36427403]
[1674114939399,5.49260644,1530.0,1529.6,9.14163579]
[1674114939575,4.53263892,1530.0,1529.6,9.14163579]
[1674114939767,4.46663892,1530.0,1529.6,9.14163579]
[1674114939982,0.68459133,1529.9,1529.6,9.14163579]
[1674114943020,12.09459644,1530.0,1529.6,9.14163579]
[1674114943714,0.68459133,1529.9,1529.6,0.066]
[1674114943871,0.68459133,1529.9,1529.5,7.28872824]
[1674114944086,0.68459133,1529.9,1529.6,1.13545016]
[1674114944329,1.68459133,1529.9,1529.5,7.28872824]
[1674114944506,0.68459133,1529.9,1529.6,1.86432785]
[1674114944717,0.68459133,1529.9,1529.5,7.28872824]
[1674114944928,0.68459133,1529.9,1529.6,1.13545384]
[1674114945186,0.68459133,1529.9,1529.5,7.28872824]
[1674114945802,0.68459133,1529.9,1529.6,1.1354335]
[1674114946080,12.69500511,1530.0,1529.6,2.63165767]
[1674114946081,19.91578644,1530.0,1529.6,2.63165767]
[1674114946400,19.91578644,1530.0,1529.5,13.82680824]
[1674114946608,19.91578644,1530.0,1529.6,1.13542238]
[1674114948830,13.37959644,1530.0,1529.6,1.13542238]
[1674114950358,12.35362892,1530.0,1529.6,1.13542238]
[1674114953402,17.32257123,1530.0,1529.6,1.13542238]
[1674114954417,4.53263892,1530.0,1529.6,7.66950075]
[1674114954793,0.4903,1530.0,1529.7,1.13532978]
[1674114955677,0.4903,1530.0,1529.6,20.36373824]
[1674114955923,0.4903,1530.0,1529.7,2.03637382]
[1674114956097,0.4903,1530.0,1529.6,20.36373824]
[1674114956995,0.4903,1530.0,1529.6,19.67875]
[1674114963347,38.49362885,1530.1,1529.6,19.67875]
[1674114963558,41.78537644,1530.1,1529.6,19.67875]
[1674114964023,41.78537644,1530.1,1529.6,21.38200657]
[1674114965238,47.54391562,1530.1,1529.6,21.38200657]
[1674114966554,46.25891562,1530.1,1529.6,21.38200657]
[1674114967077,46.25891562,1530.1,1529.6,22.06699481]
[1674114967725,46.25891562,1530.1,1529.7,1.1353577]
[1674114969020,0.68459133,1530.0,1529.6,22.06699481]
[1674114969226,1.68459133,1530.0,1529.7,1.13536417]
[1674114969503,0.68459133,1530.0,1529.7,1.13536417]
[1674114970808,0.68459133,1530.0,1529.6,22.06699481]
[1674114971022,1.68459133,1530.0,1529.7,1.13537155]
[1674114971232,6.31048289,1530.0,1529.7,1.13537155]
[1674114971490,5.37648289,1530.0,1529.7,1.13537155]
[1674114971808,6.37648289,1530.0,1529.7,1.13537155]
[1674114971965,6.37648289,1530.0,1529.6,21.38200657]
[1674114972178,6.37648289,1530.0,1529.7,1.13537383]
[1674114972601,5.37445689,1530.0,1529.7,1.13537383]
[1674114972926,5.37445689,1530.0,1529.6,22.06699481]
[1674114973185,0.74856533,1530.0,1529.7,1.13538124]
[1674114973335,0.68256533,1530.0,1529.7,1.13538124]
[1674114974499,0.68256533,1530.0,1529.6,6.60355]
[1674114974500,1.68256533,1530.0,1529.6,6.60355]
[1674114974714,0.68256533,1530.0,1529.7,0.660355]
[1674114975555,18.75763181,1530.0,1529.6,0.066]
[1674114975864,18.82363181,1530.0,1529.5,18.60658824]
[1674114976074,18.82363181,1530.0,1529.6,1.13546682]
[1674114976282,8.41892318,1529.9,1529.6,1.13546682]
[1674114976636,8.48492318,1529.9,1529.6,1.13546682]
[1674114977013,8.48492318,1529.9,1529.5,18.60658824]
[1674114977341,8.48492318,1529.9,1529.6,1.13547154]
[1674114978684,6.60256,1529.9,1529.6,1.13547154]
[1674114982615,7.28673281,1529.9,1529.6,1.13547154]
[1674114985187,8.31270033,1529.9,1529.5,19.62485657]
[1674114985805,8.31270033,1529.9,1529.5,10.05315657]
[1674114986020,8.31270033,1529.9,1529.5,8.3499]
[1674114987289,7.28673281,1529.9,1529.5,8.3499]
[1674114987501,8.28673281,1529.9,1529.5,8.3499]
[1674114987820,7.28673281,1529.9,1529.5,8.3499]
[1674114988344,8.31270033,1529.9,1529.5,11.61645168]
[1674114990403,7.28673281,1529.9,1529.5,11.61645168]
[1674114990761,7.28673281,1529.9,1529.5,12.30143992]
[1674114991008,7.28673281,1529.9,1529.6,1.13544791]
[1674114992759,7.28673281,1529.9,1529.5,13.31970825]
[1674114992972,7.28673281,1529.9,1529.6,1.33197082]
[1674114993182,7.28673281,1529.9,1529.5,19.85775825]
[1674114993505,7.28673281,1529.9,1529.5,18.15450168]
[1674114993951,7.28673281,1529.9,1529.5,18.83948992]
[1674114994169,7.28673281,1529.9,1529.5,18.15450168]
[1674114994499,7.28673281,1529.9,1529.6,1.81545017]
[1674114994703,7.28673281,1529.9,1529.5,20.54274649]
[1674114994918,7.28673281,1529.9,1529.5,18.83948992]
[1674114995130,7.28673281,1529.9,1529.6,1.13545424]
[1674114995343,7.28673281,1529.9,1529.5,20.54274649]
[1674114995658,7.28673281,1529.9,1529.6,1.13545407]
[1674114995818,9.1007716,1529.9,1529.6,1.13246735]
[1674114997328,9.1007716,1529.9,1529.5,18.83948992]
[1674114997544,9.1007716,1529.9,1529.5,15.57293824]
[1674114997700,9.1007716,1529.9,1529.5,14.88795]
[1674115001815,9.1007716,1529.9,1529.5,15.57293824]
[1674115007108,10.12673912,1529.9,1529.5,15.57293824]
[1674115007277,10.12673912,1529.9,1529.5,14.88795]
[1674115007951,9.1007716,1529.9,1529.5,15.57293824]
[1674115008334,10.12673912,1529.9,1529.5,15.57293824]
[1674115011736,13.41848671,1529.9,1529.5,9.03488824]
[1674115011890,1.69684672,1529.8,1529.5,8.3499]
[1674115012538,2.69684672,1529.8,1529.5,8.3499]
[1674115012753,0.68417281,1529.7,1529.5,8.3499]
[1674115012930,2.16781299,1529.7,1529.5,0.066]
[1674115013144,2.16781299,1529.7,1529.3,23.49258569]
[1674115013416,8.70510299,1529.7,1529.3,26.22349425]
[1674115013613,8.77110299,1529.7,1529.3,26.22349425]
[1674115013823,8.77110299,1529.7,1529.3,16.40889425]
[1674115013987,0.8771103,1529.6,1529.3,14.70563768]
[1674115014199,8.77110299,1529.7,1529.3,14.70563768]
[1674115015709,5.7513204,1529.6,1529.3,3.45409745]
[1674115015892,5.7513204,1529.6,1529.3,3.38809745]
[1674115015893,12.3552604,1529.6,1529.3,3.38809745]
[1674115016111,2.51752604,1529.5,1529.3,3.38809745]
[1674115016719,1.23552604,1529.5,1529.3,3.38809745]
[1674115018420,1.23552604,1529.5,1529.3,3.3851173]
[1674115019116,11.18068759,1529.6,1529.3,3.3851173]
[1674115023550,17.71862759,1529.6,1529.3,3.3851173]
[1674115024063,11.18068759,1529.6,1529.3,3.3851173]
[1674115044393,11.8648604,1529.6,1529.3,3.3851173]
[1674115049562,11.18068759,1529.6,1529.3,3.3851173]
[1674115049782,15.8149864,1529.6,1529.3,3.3851173]
[1674115050550,16.49915921,1529.6,1529.3,3.3851173]
[1674115052386,17.52512673,1529.6,1529.3,3.3851173]
[1674115052597,16.49915921,1529.6,1529.3,3.3851173]
[1674115053763,0.68417281,1529.5,1529.3,3.3851173]
[1674115053971,1.17457281,1529.5,1529.3,3.3851173]
[1674115054198,2.97612548,1529.5,1529.3,3.3851173]
[1674115057453,2.29195267,1529.5,1529.3,3.3851173]
[1674115057671,0.4904,1529.5,1529.3,3.3851173]
[1674115059746,18.01552673,1529.6,1529.3,3.3851173]
[1674115063167,0.68417281,1529.5,1529.3,3.3851173]
[1674115070572,1.71014033,1529.5,1529.3,3.3851173]
[1674115070834,0.85518684,1529.4,1529.3,3.3851173]
[1674115070995,0.68417281,1529.4,1529.3,3.3851173]
[1674115071359,1.42917281,1529.4,1529.3,3.3851173]
[1674115071957,1.77096752,1529.4,1529.3,3.38308155]
[1674115072205,2.45539951,1529.4,1529.3,3.38308155]
[1674115072355,2.45539662,1529.4,1529.3,3.38308155]
[1674115072567,3.49814595,1529.4,1529.3,3.38308155]
[1674115074160,2.47217843,1529.4,1529.3,3.38308155]
[1674115074509,2.81371685,1529.4,1529.3,3.38308155]
[1674115074989,3.49790187,1529.4,1529.3,3.38308155]
[1674115077085,3.49990187,1529.4,1529.3,3.38308155]
[1674115077296,3.49790187,1529.4,1529.3,3.38308155]
[1674115078165,2.47193435,1529.4,1529.3,3.38308155]
[1674115079659,1.72693435,1529.4,1529.3,3.38308155]
[1674115081461,2.06871685,1529.4,1529.3,3.38308155]
[1674115081769,3.75251907,1529.4,1529.3,3.38308155]
[1674115081928,2.75251907,1529.4,1529.3,3.38308155]
[1674115082138,1.72655155,1529.4,1529.3,3.38308155]
[1674115083005,2.75251907,1529.4,1529.3,3.38308155]
[1674115084081,1.72655155,1529.4,1529.3,3.38308155]
[1674115091291,1.04274933,1529.4,1529.3,3.38308155]
[1674115091506,16.13724974,1529.5,1529.3,3.38308155]
[1674115091722,19.42899733,1529.5,1529.3,3.38308155]
[1674115094351,0.68380222,1529.4,1529.3,3.38308155]
[1674115094558,19.42899733,1529.5,1529.3,3.38308155]
[1674115094771,1.94289973,1529.4,1529.3,3.38308155]
[1674115095399,2.62670195,1529.4,1529.3,3.38308155]
[1674115095602,2.62670195,1529.4,1529.3,3.38026336]
[1674115096060,1.94289973,1529.4,1529.3,3.38026336]
[1674115098329,0.68380222,1529.4,1529.3,3.38026336]
[1674115098539,25.96747733,1529.5,1529.3,3.38026336]
[1674115099754,24.94150981,1529.5,1529.3,3.38026336]
[1674115100193,25.96747733,1529.5,1529.3,3.38026336]
[1674115100327,29.34199061,1529.5,1529.3,3.38026336]
[1674115103947,0.68380222,1529.4,1529.3,3.38026336]
[1674115106418,28.65818839,1529.5,1529.3,3.38026336]
[1674115106419,25.96747733,1529.5,1529.3,3.38026336]
[1674115108409,0.68380222,1529.4,1529.3,3.38026336]
[1674115108951,1.70976974,1529.4,1529.3,3.38026336]
[1674115110151,1.02596752,1529.4,1529.3,3.38026336]
[1674115112199,7.56447752,1529.4,1529.3,3.38026336]
[1674115112403,7.63047752,1529.4,1529.3,3.38026336]
[1674115112720,10.46663829,1529.4,1529.3,3.38026336]